[Event "NJSK 2022 Jeugd B"]
[Site "Almelo, Netherlands"]
[Date "2022.05.02"]
[Round "2.5"]
[White "Van der Hagen, Loek"]
[Black "Bakija, Alan"]
[Result "1-0"]
[TimeControl "90min/40moves + 30min + 30sec/move"]
[WhiteElo "2071"]
[BlackElo "1868"]

1. e4 {[%clk 01:30:59]} c6 {[%clk 01:30:56]} {[%emt 00:00:04]} 2. Nc3 {[%clk
01:31:25]} {[%emt 00:00:05]} d5 {[%clk 01:31:23]} {[%emt 00:00:03]} 3. Nf3
{[%clk 01:31:50]} {[%emt 00:00:04]} Bg4 {[%clk 01:31:49]} {[%emt 00:00:04]} 4.
h3 {[%clk 01:32:16]} {[%emt 00:00:04]} Bxf3 {[%clk 01:32:14]} {[%emt 00:00:05]}
5. Qxf3 {[%clk 01:32:43]} {[%emt 00:00:03]} e6 {[%clk 01:32:38]} {[%emt
00:00:06]} 6. Be2 {[%clk 01:33:08]} {[%emt 00:00:05]} Bc5 {[%clk 01:33:04]}
{[%emt 00:00:05]} 7. Qg3 {[%clk 01:33:10]} {[%emt 00:00:27]} Bd4 {[%clk
01:33:27]} {[%emt 00:00:08]} 8. exd5 {[%clk 01:33:35]} {[%emt 00:00:05]} exd5
{[%clk 01:32:55]} {[%emt 00:01:02]} 9. O-O {[%clk 01:33:58]} {[%emt 00:00:06]}
Ne7 {[%clk 01:33:02]} {[%emt 00:00:23]} 10. Qg4 {[%clk 01:34:09]} {[%emt
00:00:18]} Bf6 {[%clk 01:33:13]} {[%emt 00:00:20]} 11. d4 {[%clk 01:34:15]}
{[%emt 00:00:24]} O-O {[%clk 01:32:51]} {[%emt 00:00:52]} 12. Bd3 {[%clk
01:28:13]} {[%emt 00:06:32]} Qd7 {[%clk 01:25:17]} {[%emt 00:08:04]} 13. Ne2
{[%clk 01:22:12]} {[%emt 00:06:32]} Qxg4 {[%clk 01:01:26]} {[%emt 00:24:20]} 14.
hxg4 {[%clk 01:22:41]} {[%emt 00:00:01]} h6 {[%clk 00:59:46]} {[%emt 00:02:10]}
15. c3 {[%clk 01:20:46]} {[%emt 00:02:24]} Nd7 {[%clk 00:53:08]} {[%emt
00:07:09]} 16. Ng3 {[%clk 01:15:28]} {[%emt 00:05:47]} c5 {[%clk 00:49:16]}
{[%emt 00:04:22]} 17. Bb5 {[%clk 00:56:23]} {[%emt 00:19:35]} Nc6 {[%clk
00:47:12]} {[%emt 00:02:35]} 18. dxc5 {[%clk 00:56:13]} {[%emt 00:00:40]} Nxc5
{[%clk 00:46:57]} {[%emt 00:00:45]} 19. Rd1 {[%clk 00:47:54]} {[%emt 00:08:48]}
Rfd8 {[%clk 00:46:12]} {[%emt 00:01:16]} 20. Nh5 {[%clk 00:40:50]} {[%emt
00:07:33]} Be7 {[%clk 00:41:41]} {[%emt 00:05:02]} 21. Be3 {[%clk 00:33:15]}
{[%emt 00:08:05]} a6 {[%clk 00:20:51]} {[%emt 00:21:20]} 22. Be2 {[%clk
00:31:47]} {[%emt 00:01:58]} Ne6 {[%clk 00:08:19]} {[%emt 00:13:01]} 23. Bf3
{[%clk 00:17:57]} {[%emt 00:14:20]} d4 {[%clk 00:08:20]} {[%emt 00:00:29]} 24.
cxd4 {[%clk 00:16:23]} {[%emt 00:02:04]} Nexd4 {[%clk 00:06:19]} {[%emt
00:02:31]} 25. Be4 {[%clk 00:11:24]} {[%emt 00:05:29]} Rab8 {[%clk 00:02:58]}
{[%emt 00:03:52]} 26. Ng3 {[%clk 00:05:28]} {[%emt 00:06:25]} Bf6 {[%clk
00:02:41]} {[%emt 00:00:46]} 27. Nh5 {[%clk 00:03:54]} {[%emt 00:02:04]} Be5
{[%clk 00:02:06]} {[%emt 00:01:06]} 28. f4 {[%clk 00:02:49]} {[%emt 00:01:36]}
Bc7 {[%clk 00:02:32]} {[%emt 00:00:03]} 29. Kf2 {[%clk 00:02:10]} {[%emt
00:01:09]} Ne6 {[%clk 00:01:47]} {[%emt 00:01:15]} 30. f5 {[%clk 00:01:21]}
{[%emt 00:01:18]} Ng5 {[%clk 00:01:42]} {[%emt 00:00:36]} 31. Bxc6 {[%clk
00:00:52]} {[%emt 00:00:59]} bxc6 {[%clk 00:02:07]} {[%emt 00:00:05]} 32. Rxd8+
{[%clk 00:00:53]} {[%emt 00:00:29]} Rxd8 {[%clk 00:02:29]} {[%emt 00:00:08]} 33.
Rc1 {[%clk 00:01:05]} {[%emt 00:00:18]} Be5 {[%clk 00:01:06]} {[%emt 00:01:53]}
34. Rxc6 {[%clk 00:00:38]} {[%emt 00:00:56]} Bxb2 {[%clk 00:01:31]} {[%emt
00:00:06]} 35. Rxa6 {[%clk 00:00:47]} {[%emt 00:00:21]} Ne4+ {[%clk 00:01:55]}
{[%emt 00:00:05]} 36. Kf3 {[%clk 00:01:00]} {[%emt 00:00:17]} Nd2+ {[%clk
00:01:01]} {[%emt 00:01:25]} 37. Bxd2 {[%clk 00:00:56]} {[%emt 00:00:35]} Rxd2
{[%clk 00:01:26]} {[%emt 00:00:03]} 38. Ra8+ {[%clk 00:01:12]} {[%emt
00:00:15]} Kh7 {[%clk 00:01:52]} {[%emt 00:00:04]} 39. Ra7 {[%clk 00:00:43]}
{[%emt 00:00:59]} Rd3+ {[%clk 00:01:06]} {[%emt 00:01:16]} 40. Ke2 {[%clk
00:00:48]} {[%emt 00:00:25]} Ra3 {[%clk 00:00:36]} {[%emt 00:01:00]} 41. Rxa3
{[%clk 00:27:56]} {[%emt 00:03:22]} Bxa3 {[%clk 00:31:02]} {[%emt 00:00:04]} 42.
Nf4 {[%clk 00:26:53]} {[%emt 00:01:33]} Kg8 {[%clk 00:30:05]} {[%emt 00:01:26]}
43. Nd5 {[%clk 00:25:21]} {[%emt 00:02:03]} Kf8 {[%clk 00:27:49]} {[%emt
00:02:46]} 44. Kd3 {[%clk 00:25:33]} {[%emt 00:00:18]} Ke8 {[%clk 00:28:08]}
{[%emt 00:00:11]} 45. Nb6 {[%clk 00:25:48]} {[%emt 00:00:15]} Ke7 {[%clk
00:25:35]} {[%emt 00:03:03]} 46. Ke4 {[%clk 00:25:19]} {[%emt 00:00:59]} Bc5
{[%clk 00:10:56]} {[%emt 00:15:09]} 47. Nc4 {[%clk 00:25:00]} {[%emt 00:00:48]}
g6 {[%clk 00:08:50]} {[%emt 00:02:37]} 48. a4 {[%clk 00:21:15]} {[%emt
00:04:16]} Kf6 {[%clk 00:04:23]} {[%emt 00:04:56]} 49. a5 {[%clk 00:20:18]}
{[%emt 00:01:27]} Kg5 {[%clk 00:02:56]} {[%emt 00:01:56]} 50. Ne5 {[%clk
00:17:37]} {[%emt 00:03:11]} gxf5+ {[%clk 00:01:42]} {[%emt 00:01:44]} 51. gxf5
{[%clk 00:17:57]} {[%emt 00:00:11]} 1-0

[Event "NJSK 2022 Jeugd B"]
[Site "Almelo, Netherlands"]
[Date "2022.05.02"]
[Round "2.6"]
[White "Alvares, Thomas"]
[Black "Niemeijer, Leon"]
[Result "0-1"]
[TimeControl "90min/40moves + 30min + 30sec/move"]
[WhiteElo "1789"]
[BlackElo "1693"]

1. e4 {[%clk 01:30:57]} {[%emt 00:00:02]} e6 {[%clk 01:30:56]} {[%emt
00:00:05]} 2. d4 {[%clk 01:31:23]} {[%emt 00:00:05]} d5 {[%clk 01:31:21]}
{[%emt 00:00:04]} 3. Nc3 {[%clk 01:31:47]} {[%emt 00:00:05]} Nf6 {[%clk
01:31:42]} {[%emt 00:00:10]} 4. e5 {[%clk 01:32:11]} {[%emt 00:00:06]} Nfd7
{[%clk 01:32:02]} {[%emt 00:00:10]} 5. f4 {[%clk 01:32:35]} {[%emt 00:00:05]}
c5 {[%clk 01:32:27]} {[%emt 00:00:06]} 6. Nf3 {[%clk 01:33:00]} {[%emt
00:00:05]} Nc6 {[%clk 01:32:46]} {[%emt 00:00:11]} 7. Be3 {[%clk 01:33:18]}
{[%emt 00:00:12]} cxd4 {[%clk 01:32:17]} {[%emt 00:00:59]} 8. Nxd4 {[%clk
01:33:36]} {[%emt 00:00:12]} Qb6 {[%clk 01:32:36]} {[%emt 00:00:11]} 9. Na4
{[%clk 01:28:56]} {[%emt 00:05:10]} Qa5+ {[%clk 01:32:09]} {[%emt 00:00:57]} 10.
c3 {[%clk 01:08:11]} {[%emt 00:21:15]} Nxd4 {[%clk 01:29:01]} {[%emt 00:03:38]}
11. b4 {[%clk 01:08:05]} {[%emt 00:00:37]} Bxb4 {[%clk 01:25:47]} {[%emt
00:03:43]} 12. Bxd4 {[%clk 01:06:45]} {[%emt 00:01:49]} Be7 {[%clk 01:24:24]}
{[%emt 00:01:54]} 13. Rb1 {[%clk 01:03:31]} {[%emt 00:03:44]} a6 {[%clk
01:15:48]} {[%emt 00:09:05]} 14. Bd3 {[%clk 00:50:44]} {[%emt 00:13:18]} b5
{[%clk 01:13:54]} {[%emt 00:02:24]} 15. Nb2 {[%clk 00:50:59]} {[%emt 00:00:14]}
Bc5 {[%clk 01:10:26]} {[%emt 00:03:58]} 16. Ke2 {[%clk 00:43:01]} {[%emt
00:08:28]} Qxa2 {[%clk 00:58:14]} {[%emt 00:12:43]} 17. Qc2 {[%clk 00:42:07]}
{[%emt 00:01:24]} Qa5 {[%clk 00:58:34]} {[%emt 00:00:10]} 18. f5 {[%clk
00:38:27]} {[%emt 00:04:11]} exf5 {[%clk 00:53:10]} {[%emt 00:05:54]} 19. Bxf5
{[%clk 00:38:16]} {[%emt 00:00:40]} Bxd4 {[%clk 00:50:24]} {[%emt 00:03:16]} 20.
cxd4 {[%clk 00:37:46]} {[%emt 00:01:00]} Qb6 {[%clk 00:47:26]} {[%emt
00:03:27]} 21. e6 {[%clk 00:32:36]} {[%emt 00:05:41]} fxe6 {[%clk 00:44:23]}
{[%emt 00:03:33]} 22. Bxh7 {[%clk 00:32:25]} {[%emt 00:00:40]} Qxd4 {[%clk
00:42:27]} {[%emt 00:02:27]} 23. Bg6+ {[%clk 00:25:30]} {[%emt 00:07:25]} Ke7
{[%clk 00:41:52]} {[%emt 00:01:05]} 24. h3 {[%clk 00:19:16]} {[%emt 00:06:45]}
Bb7 {[%clk 00:41:24]} {[%emt 00:00:57]} 25. Rhf1 {[%clk 00:13:01]} {[%emt
00:06:45]} Rhf8 {[%clk 00:40:04]} {[%emt 00:01:48]} 26. Nd3 {[%clk 00:12:09]}
{[%emt 00:01:24]} Rac8 {[%clk 00:39:30]} {[%emt 00:01:04]} 27. Qd2 {[%clk
00:11:29]} {[%emt 00:01:10]} Rxf1 {[%clk 00:35:59]} {[%emt 00:04:01]} 28. Rxf1
{[%clk 00:11:38]} {[%emt 00:00:20]} Nf6 {[%clk 00:33:58]} {[%emt 00:02:31]} 29.
Rf4 {[%clk 00:09:28]} {[%emt 00:02:41]} Qc3 {[%clk 00:33:26]} {[%emt 00:01:01]}
30. Qe3 {[%clk 00:08:04]} {[%emt 00:01:56]} Qc2+ {[%clk 00:33:04]} {[%emt
00:00:52]} 31. Kf1 {[%clk 00:07:50]} {[%emt 00:00:44]} Qb1+ {[%clk 00:26:55]}
{[%emt 00:06:39]} 32. Kf2 {[%clk 00:07:08]} {[%emt 00:01:11]} Rc2+ {[%clk
00:25:38]} {[%emt 00:01:47]} 33. Kg3 {[%clk 00:06:45]} {[%emt 00:00:53]} d4
{[%clk 00:19:15]} {[%emt 00:06:54]} 34. Qxd4 {[%clk 00:06:15]} {[%emt
00:01:00]} Rxg2+ {[%clk 00:19:08]} {[%emt 00:00:37]} 35. Kh4 {[%clk 00:06:34]}
{[%emt 00:00:11]} Rxg6 {[%clk 00:18:16]} {[%emt 00:01:21]} 36. Qc5+ {[%clk
00:06:38]} {[%emt 00:00:27]} Ke8 {[%clk 00:18:07]} {[%emt 00:00:39]} 0-1

[Event "NJSK 2022 Jeugd B"]
[Site "Almelo, Netherlands"]
[Date "2022.05.02"]
[Round "2.7"]
[White "Blom, Rens"]
[Black "Van Egmond, Tom"]
[Result "0-1"]
[TimeControl "90min/40moves + 30min + 30sec/move"]
[WhiteElo "1699"]
[BlackElo "1672"]

1. c4 {[%clk 01:30:58]} {[%emt 00:00:01]} e5 {[%clk 01:30:48]} {[%emt
00:00:12]} 2. Nc3 {[%clk 01:31:22]} {[%emt 00:00:06]} Nf6 {[%clk 01:31:13]}
{[%emt 00:00:06]} 3. Nf3 {[%clk 01:31:46]} {[%emt 00:00:06]} Nc6 {[%clk
01:31:33]} {[%emt 00:00:10]} 4. e4 {[%clk 01:32:08]} {[%emt 00:00:08]} Bb4
{[%clk 01:31:20]} {[%emt 00:00:43]} 5. d3 {[%clk 01:32:29]} {[%emt 00:00:08]}
d6 {[%clk 01:31:41]} {[%emt 00:00:09]} 6. g3 {[%clk 01:32:49]} {[%emt
00:00:11]} Bg4 {[%clk 01:31:53]} {[%emt 00:00:17]} 7. Bg2 {[%clk 01:33:10]}
{[%emt 00:00:09]} Nd4 {[%clk 01:31:58]} {[%emt 00:00:26]} 8. h3 {[%clk
01:33:30]} {[%emt 00:00:09]} Bxf3 {[%clk 01:32:08]} {[%emt 00:00:20]} 9. Bxf3
{[%clk 01:33:52]} {[%emt 00:00:09]} Bc5 {[%clk 01:32:24]} {[%emt 00:00:14]} 10.
Bg2 {[%clk 01:32:48]} {[%emt 00:01:33]} c6 {[%clk 01:23:00]} {[%emt 00:09:54]}
11. O-O {[%clk 01:29:38]} {[%emt 00:03:40]} O-O {[%clk 01:15:18]} {[%emt
00:08:11]} 12. Kh2 {[%clk 01:28:17]} {[%emt 00:01:51]} Nd7 {[%clk 01:02:49]}
{[%emt 00:13:00]} 13. f4 {[%clk 01:24:04]} {[%emt 00:04:43]} exf4 {[%clk
01:00:21]} {[%emt 00:02:58]} 14. Bxf4 {[%clk 01:19:21]} {[%emt 00:05:12]} Ne5
{[%clk 00:59:56]} {[%emt 00:00:55]} 15. a3 {[%clk 01:10:50]} {[%emt 00:09:01]}
a5 {[%clk 00:52:13]} {[%emt 00:08:14]} 16. Ne2 {[%clk 01:05:58]} {[%emt
00:05:22]} Qb6 {[%clk 00:48:00]} {[%emt 00:04:43]} 17. Be3 {[%clk 00:54:08]}
{[%emt 00:12:19]} Nxe2 {[%clk 00:43:25]} {[%emt 00:05:06]} 18. Bxc5 {[%clk
00:54:22]} {[%emt 00:00:17]} Qxc5 {[%clk 00:43:52]} {[%emt 00:00:03]} 19. Qxe2
{[%clk 00:54:45]} {[%emt 00:00:07]} Qd4 {[%clk 00:44:19]} {[%emt 00:00:02]} 20.
Rad1 {[%clk 00:45:43]} {[%emt 00:09:32]} Ra6 {[%clk 00:36:08]} {[%emt
00:08:41]} 21. Qf2 {[%clk 00:42:27]} {[%emt 00:03:46]} c5 {[%clk 00:36:15]}
{[%emt 00:00:23]} 22. Qxd4 {[%clk 00:32:29]} {[%emt 00:10:28]} cxd4 {[%clk
00:36:44]} {[%emt 00:00:01]} 23. Rd2 {[%clk 00:32:54]} {[%emt 00:00:06]} Rb6
{[%clk 00:36:10]} {[%emt 00:01:03]} 24. Rf5 {[%clk 00:27:00]} {[%emt 00:06:25]}
Rb3 {[%clk 00:30:25]} {[%emt 00:06:14]} 25. c5 {[%clk 00:25:42]} {[%emt
00:01:48]} g6 {[%clk 00:30:45]} {[%emt 00:00:10]} 26. Rff2 {[%clk 00:16:31]}
{[%emt 00:09:41]} dxc5 {[%clk 00:30:40]} {[%emt 00:00:35]} 27. Bf1 {[%clk
00:16:37]} {[%emt 00:00:23]} Rd8 {[%clk 00:26:55]} {[%emt 00:04:14]} 28. Rc2
{[%clk 00:15:01]} {[%emt 00:02:07]} Nxd3 {[%clk 00:23:05]} {[%emt 00:04:20]} 29.
Bxd3 {[%clk 00:15:19]} {[%emt 00:00:12]} Rxd3 {[%clk 00:23:31]} {[%emt
00:00:04]} 30. Rxc5 {[%clk 00:15:39]} {[%emt 00:00:11]} Re3 {[%clk 00:22:24]}
{[%emt 00:01:36]} 31. Rc7 {[%clk 00:13:29]} {[%emt 00:02:40]} f5 {[%clk
00:14:58]} {[%emt 00:07:57]} 32. exf5 {[%clk 00:09:15]} {[%emt 00:04:44]} d3
{[%clk 00:15:15]} {[%emt 00:00:13]} 33. Rd2 {[%clk 00:08:43]} {[%emt 00:01:02]}
Re2+ {[%clk 00:15:14]} {[%emt 00:00:31]} 34. Rxe2 {[%clk 00:09:02]} {[%emt
00:00:11]} dxe2 {[%clk 00:15:43]} {[%emt 00:00:01]} 35. Re7 {[%clk 00:09:17]}
{[%emt 00:00:15]} Rd2 {[%clk 00:16:04]} {[%emt 00:00:09]} 36. Kg1 {[%clk
00:09:18]} {[%emt 00:00:30]} gxf5 {[%clk 00:15:01]} {[%emt 00:01:33]} 37. Kf2
{[%clk 00:08:46]} {[%emt 00:01:02]} Rxb2 {[%clk 00:15:00]} {[%emt 00:00:30]} 38.
Rxe2 {[%clk 00:04:59]} {[%emt 00:04:17]} Rxe2+ {[%clk 00:13:12]} {[%emt
00:02:18]} 39. Kxe2 {[%clk 00:05:19]} {[%emt 00:00:09]} b5 {[%clk 00:12:57]}
{[%emt 00:00:46]} 40. Kd3 {[%clk 00:05:08]} {[%emt 00:00:41]} h5 {[%clk
00:08:18]} {[%emt 00:05:08]} 41. h4 {[%clk 00:00:32]} {[%emt 00:05:07]} Kf7
{[%clk 00:08:16]} {[%emt 00:00:32]} 42. Kd4 {[%clk 00:29:50]} {[%emt 00:01:12]}
Ke6 {[%clk 00:37:28]} {[%emt 00:01:18]} 43. Kc5 {[%clk 00:29:15]} {[%emt
00:01:06]} b4 {[%clk 00:37:09]} {[%emt 00:00:49]} 44. axb4 {[%clk 00:29:29]}
{[%emt 00:00:15]} axb4 {[%clk 00:37:34]} {[%emt 00:00:05]} 45. Kxb4 {[%clk
00:29:53]} {[%emt 00:00:06]} Kd5 {[%clk 00:37:51]} {[%emt 00:00:12]} 0-1

[Event "NJSK 2022 Jeugd B"]
[Site "Almelo, Netherlands"]
[Date "2022.05.02"]
[Round "2.8"]
[White "Wierenga, Jael"]
[Black "De Heij, Mees"]
[Result "1-0"]
[TimeControl "90min/40moves + 30min + 30sec/move"]
[WhiteElo "1691"]
[BlackElo "1622"]

1. d4 {[%clk 01:30:59]} d5 {[%clk 01:30:59]} {[%emt 00:00:02]} 2. Bf4 {[%clk
01:31:22]} {[%emt 00:00:07]} Nf6 {[%clk 01:31:22]} {[%emt 00:00:06]} 3. e3
{[%clk 01:31:46]} {[%emt 00:00:06]} e6 {[%clk 01:31:46]} {[%emt 00:00:06]} 4.
Nf3 {[%clk 01:32:05]} {[%emt 00:00:11]} c5 {[%clk 01:31:54]} {[%emt 00:00:22]}
5. c3 {[%clk 01:30:39]} {[%emt 00:01:56]} Nc6 {[%clk 01:31:05]} {[%emt
00:01:19]} 6. Nbd2 {[%clk 01:29:43]} {[%emt 00:01:26]} Be7 {[%clk 01:28:38]}
{[%emt 00:02:57]} 7. Bd3 {[%clk 01:28:51]} {[%emt 00:01:22]} c4 {[%clk
01:20:04]} {[%emt 00:09:04]} 8. Bc2 {[%clk 01:27:04]} {[%emt 00:02:16]} b5
{[%clk 01:07:25]} {[%emt 00:13:09]} 9. a3 {[%clk 01:26:42]} {[%emt 00:00:52]}
Qb6 {[%clk 01:02:19]} {[%emt 00:05:36]} 10. O-O {[%clk 01:17:40]} {[%emt
00:09:33]} O-O {[%clk 01:02:02]} {[%emt 00:00:47]} 11. e4 {[%clk 01:06:20]}
{[%emt 00:11:50]} dxe4 {[%clk 00:50:03]} {[%emt 00:12:29]} 12. Nxe4 {[%clk
00:59:58]} {[%emt 00:06:52]} Nd5 {[%clk 00:49:35]} {[%emt 00:00:58]} 13. Bg5
{[%clk 00:48:50]} {[%emt 00:11:38]} Bb7 {[%clk 00:43:29]} {[%emt 00:06:36]} 14.
Bxe7 {[%clk 00:45:43]} {[%emt 00:03:37]} Ncxe7 {[%clk 00:43:10]} {[%emt
00:00:49]} 15. Ne5 {[%clk 00:44:53]} {[%emt 00:01:20]} Rad8 {[%clk 00:35:14]}
{[%emt 00:08:26]} 16. Nc5 {[%clk 00:38:57]} {[%emt 00:06:26]} Bc6 {[%clk
00:33:39]} {[%emt 00:02:05]} 17. Qg4 {[%clk 00:32:07]} {[%emt 00:07:19]} Nf6
{[%clk 00:31:37]} {[%emt 00:02:33]} 18. Qh3 {[%clk 00:29:37]} {[%emt 00:02:59]}
Ned5 {[%clk 00:31:15]} {[%emt 00:00:53]} 19. Nxe6 {[%clk 00:27:07]} {[%emt
00:03:00]} Bd7 {[%clk 00:21:51]} {[%emt 00:09:54]} 20. Nxd7 {[%clk 00:27:13]}
{[%emt 00:00:24]} fxe6 {[%clk 00:20:32]} {[%emt 00:01:16]} 1-0

[Event "NJSK 2022 Jeugd B"]
[Site "Almelo, Netherlands"]
[Date "2022.05.02"]
[Round "2.9"]
[White "Smid, Jelle"]
[Black "Knol, Daniel"]
[Result "1-0"]
[TimeControl "90min/40moves + 30min + 30sec/move"]
[WhiteElo "1450"]
[BlackElo "1685"]

1. d4 {[%clk 01:30:57]} {[%emt 00:00:02]} Nf6 {[%clk 01:30:53]} {[%emt
00:00:07]} 2. c4 {[%clk 01:31:21]} {[%emt 00:00:06]} e6 {[%clk 01:31:20]}
{[%emt 00:00:04]} 3. Nf3 {[%clk 01:31:30]} {[%emt 00:00:21]} d5 {[%clk
01:31:44]} {[%emt 00:00:06]} 4. Nc3 {[%clk 01:31:53]} {[%emt 00:00:07]} Be7
{[%clk 01:32:09]} {[%emt 00:00:05]} 5. Bg5 {[%clk 01:32:16]} {[%emt 00:00:07]}
Nbd7 {[%clk 01:31:42]} {[%emt 00:00:58]} 6. e3 {[%clk 01:32:32]} {[%emt
00:00:14]} h6 {[%clk 01:32:06]} {[%emt 00:00:05]} 7. Bh4 {[%clk 01:32:34]}
{[%emt 00:00:28]} b6 {[%clk 01:31:47]} {[%emt 00:00:49]} 8. cxd5 {[%clk
01:32:07]} {[%emt 00:00:56]} exd5 {[%clk 01:31:42]} {[%emt 00:00:36]} 9. Bd3
{[%clk 01:26:42]} {[%emt 00:05:56]} Bb7 {[%clk 01:31:51]} {[%emt 00:00:21]} 10.
O-O {[%clk 01:26:25]} {[%emt 00:00:46]} O-O {[%clk 01:32:16]} {[%emt 00:00:05]}
11. Rc1 {[%clk 01:24:04]} {[%emt 00:02:51]} c5 {[%clk 01:27:51]} {[%emt
00:04:56]} 12. Qe2 {[%clk 01:11:01]} {[%emt 00:13:32]} c4 {[%clk 01:27:49]}
{[%emt 00:00:33]} 13. Bc2 {[%clk 01:11:11]} {[%emt 00:00:20]} Ne4 {[%clk
01:18:56]} {[%emt 00:09:23]} 14. Bxe7 {[%clk 01:10:17]} {[%emt 00:01:23]} Nxc3
{[%clk 01:18:44]} {[%emt 00:00:43]} 15. bxc3 {[%clk 01:10:26]} {[%emt
00:00:20]} Qxe7 {[%clk 01:19:10]} {[%emt 00:00:03]} 16. e4 {[%clk 01:06:05]}
{[%emt 00:04:51]} dxe4 {[%clk 01:16:59]} {[%emt 00:02:41]} 17. Nd2 {[%clk
01:06:28]} {[%emt 00:00:07]} Nf6 {[%clk 01:05:14]} {[%emt 00:12:15]} 18. Rfe1
{[%clk 00:53:43]} {[%emt 00:13:15]} Rfe8 {[%clk 01:04:41]} {[%emt 00:01:04]} 19.
f3 {[%clk 00:51:25]} {[%emt 00:02:47]} e3 {[%clk 01:04:37]} {[%emt 00:00:35]}
20. Nf1 {[%clk 00:49:33]} {[%emt 00:02:21]} Nd5 {[%clk 01:02:44]} {[%emt
00:02:23]} 21. Be4 {[%clk 00:49:32]} {[%emt 00:00:31]} Nf4 {[%clk 00:59:47]}
{[%emt 00:03:27]} 22. Qxe3 {[%clk 00:49:42]} {[%emt 00:00:20]} Qg5 {[%clk
01:00:06]} {[%emt 00:00:11]} 23. g3 {[%clk 00:39:38]} {[%emt 00:10:33]} Nh3+
{[%clk 00:58:30]} {[%emt 00:02:06]} 24. Kg2 {[%clk 00:39:56]} {[%emt 00:00:11]}
Bxe4 {[%clk 00:56:52]} {[%emt 00:02:08]} 25. fxe4 {[%clk 00:39:58]} {[%emt
00:00:28]} Qg4 {[%clk 00:51:22]} {[%emt 00:06:00]} 26. Qf3 {[%clk 00:35:07]}
{[%emt 00:05:21]} Qxf3+ {[%clk 00:46:16]} {[%emt 00:05:35]} 27. Kxf3 {[%clk
00:35:29]} {[%emt 00:00:07]} Ng5+ {[%clk 00:46:16]} {[%emt 00:00:31]} 28. Kf4
{[%clk 00:35:37]} {[%emt 00:00:22]} Nh3+ {[%clk 00:41:53]} {[%emt 00:04:52]} 29.
Ke3 {[%clk 00:35:43]} {[%emt 00:00:25]} Ng5 {[%clk 00:39:44]} {[%emt 00:02:39]}
30. Nd2 {[%clk 00:35:43]} {[%emt 00:00:29]} Nxe4 {[%clk 00:34:25]} {[%emt
00:05:50]} 31. Nxe4 {[%clk 00:35:59]} {[%emt 00:00:14]} f5 {[%clk 00:34:53]}
{[%emt 00:00:02]} 32. Kf4 {[%clk 00:35:31]} {[%emt 00:00:58]} fxe4 {[%clk
00:35:13]} {[%emt 00:00:10]} 33. Rxe4 {[%clk 00:35:52]} {[%emt 00:00:09]} Rf8+
{[%clk 00:32:58]} {[%emt 00:02:45]} 34. Ke3 {[%clk 00:35:32]} {[%emt 00:00:49]}
Rae8 {[%clk 00:32:27]} {[%emt 00:01:02]} 35. Rc2 {[%clk 00:35:50]} {[%emt
00:00:12]} b5 {[%clk 00:22:50]} {[%emt 00:10:07]} 36. d5 {[%clk 00:35:18]}
{[%emt 00:01:02]} Rd8 {[%clk 00:22:34]} {[%emt 00:00:46]} 37. Rd2 {[%clk
00:33:47]} {[%emt 00:02:00]} Rf6 {[%clk 00:08:45]} {[%emt 00:14:19]} 38. Kd4
{[%clk 00:33:21]} {[%emt 00:00:56]} Rfd6 {[%clk 00:06:45]} {[%emt 00:02:31]} 39.
Kc5 {[%clk 00:33:08]} {[%emt 00:00:43]} a6 {[%clk 00:06:45]} {[%emt 00:00:30]}
40. Rdd4 {[%clk 00:32:19]} {[%emt 00:01:19]} Kf7 {[%clk 00:06:04]} {[%emt
00:01:11]} 41. Rf4+ {[%clk 00:32:17]} {[%emt 00:00:31]} Ke7 {[%clk 00:03:32]}
{[%emt 00:03:03]} 42. Rde4+ {[%clk 00:32:25]} {[%emt 00:00:21]} Kd7 {[%clk
00:04:01]} {[%emt 00:00:01]} 43. Rf7+ {[%clk 00:32:10]} {[%emt 00:00:45]} Kc8
{[%clk 00:04:31]} {[%emt 00:00:01]} 44. Re5 {[%clk 00:31:47]} {[%emt 00:00:53]}
g5 {[%clk 00:04:23]} {[%emt 00:00:37]} 45. Rfe7 {[%clk 00:30:42]} {[%emt
00:01:35]} R8d7 {[%clk 00:02:25]} {[%emt 00:02:29]} 46. a3 {[%clk 00:30:22]}
{[%emt 00:00:49]} Rxd5+ {[%clk 00:02:38]} {[%emt 00:00:17]} 47. Rxd5 {[%clk
00:30:18]} {[%emt 00:00:34]} Rxe7 {[%clk 00:03:08]} 48. Rd6 {[%clk 00:29:56]}
{[%emt 00:00:52]} Re3 {[%clk 00:03:17]} {[%emt 00:00:20]} 49. Rxa6 {[%clk
00:26:46]} {[%emt 00:03:41]} Rxc3 {[%clk 00:03:06]} {[%emt 00:00:41]} 50. Kxb5
{[%clk 00:27:05]} {[%emt 00:00:11]} h5 {[%clk 00:02:30]} {[%emt 00:01:06]} 51.
a4 {[%clk 00:26:28]} {[%emt 00:01:07]} Rc2 {[%clk 00:02:40]} {[%emt 00:00:20]}
52. h4 {[%clk 00:26:29]} {[%emt 00:00:28]} gxh4 {[%clk 00:30:03]} {[%emt
00:03:07]} 53. gxh4 {[%clk 00:56:47]} {[%emt 00:00:12]} Rh2 {[%clk 00:28:37]}
{[%emt 00:01:56]} 54. Rc6+ {[%clk 00:57:04]} {[%emt 00:00:13]} Kb7 {[%clk
00:28:59]} {[%emt 00:00:08]} 55. Rxc4 {[%clk 00:57:24]} {[%emt 00:00:11]} Rb2+
{[%clk 00:24:55]} {[%emt 00:04:34]} 56. Kc5 {[%clk 00:57:44]} {[%emt 00:00:10]}
Rg2 {[%clk 00:23:25]} {[%emt 00:01:59]} 57. Kd5 {[%clk 00:58:03]} {[%emt
00:00:12]} Kb6 {[%clk 00:23:36]} {[%emt 00:00:18]} 58. Ke5 {[%clk 00:58:01]}
{[%emt 00:00:32]} Ka5 {[%clk 00:22:24]} {[%emt 00:01:43]} 59. Kf5 {[%emt
00:00:46]} Rg3 {[%clk 00:22:29]} {[%emt 00:00:02]} 60. Kf6 {[%clk 00:56:09]}
{[%emt 00:02:28]} Kb6 {[%clk 00:22:11]} {[%emt 00:00:48]} 61. a5+ {[%clk
00:56:10]} {[%emt 00:00:29]} Kb5 {[%clk 00:22:40]} {[%emt 00:00:01]} 62. Rf4
{[%clk 00:56:17]} {[%emt 00:00:21]} Kxa5 {[%clk 00:21:27]} {[%emt 00:01:44]} 63.
Rf5+ {[%clk 00:56:40]} {[%emt 00:00:06]} Kb6 {[%clk 00:21:54]} {[%emt
00:00:03]} 64. Rxh5 {[%clk 00:56:56]} {[%emt 00:00:14]} Kc6 {[%clk 00:21:51]}
{[%emt 00:00:33]} 65. Re5 {[%clk 00:57:17]} {[%emt 00:00:09]} Kd6 {[%clk
00:22:13]} {[%emt 00:00:08]} 66. Re1 {[%clk 00:57:35]} {[%emt 00:00:12]} Rg8
{[%clk 00:22:24]} {[%emt 00:00:19]} 67. Rd1+ {[%clk 00:57:55]} {[%emt
00:00:10]} Kc7 {[%clk 00:22:50]} {[%emt 00:00:05]} 68. h5 {[%clk 00:58:14]}
{[%emt 00:00:10]} 1-0